[Event "Israel-ch Semi-final 2022"]
[Site "Ramat Gan"]
[Date "2022.05.23"]
[Round "3.3"]
[White "Aharonovich, Itamar"]
[Black "Zemach, Nadav"]
[Result "0-1"]
[ECO "E04"]
[WhiteElo "2324"]
[BlackElo "2238"]
[Annotator "TA"]
[PlyCount "62"]
[EventDate "2022.05.09"]
[EventType "swiss"]
[EventCountry "ISR"]
[SourceTitle "playchess.com"]
[Source "ChessBase"]
[SourceQuality "1"]
[TimeControl "40/5400+30:1800+30"]

{[%evp 16,62,0,0,0,0,0,0,0,0,0,9,28,12,25,17,9,7,42,21,8,-100,-100,-115,-20,-156,-94,-352,-335,-272,-220,-380,-369,-359,-363,-508,-508,-488,-491,-668,-672,-673,-652,-795,-777,-764,-742,-1292,-616]} 1. d4 {[%emt 0:00:22]} d5 {[%emt 0:00:06]} 2. c4 {[%emt 0:00:28]} e6 {[%emt 0:00:02]} 3. Nf3 {[%emt 0:00:14]} a6 {[%emt 0:00:04]} 4. g3 {[%emt 0:00:17]} dxc4 {[%emt 0:00:07]} 5. Bg2 {[%emt 0:00:13]} Nc6 {[%emt 0:00:07]} 6. O-O {[%emt 0:00:49]} Rb8 {[%emt 0:00:08]} 7. e4 {[%emt 0:03:23]} Nf6 {[%emt 0:00:25]} 8. Nc3 {[%emt 0:00:07]} Be7 {[%emt 0:00:17]} 9. Qe2 {[%emt 0:00:28]} b5 {[%emt 0:00:07] 9...Nxd4 is vanishing. E04: Open Catalan: 5 Nf3.} 10. Rd1 {[%emt 0:03:37]} O-O {[%emt 0:00:22]} 11. d5 {[%emt 0:00:17]} exd5 {[%emt 0:00:02] The position is equal.} 12. e5 $1 {[%emt 0:00:13]} d4 {[%emt 0:00:06] Hoping for ...d3.} 13. exf6 {[%emt 0:00:09]} Bxf6 {[%emt 0:00:02]} 14. Ne4 {[%emt 0:00:13] is currently scoring better than 14.Qe4.} Be7 {[%emt 0:01:40]} 15. b3 {[%emt 0:04:47]} d3 $132 {[%emt 0:03:48][%mdl 2048] Black is not keeping still} 16. Qd2 {[%emt 0:01:56]} Bb4 {[%emt 0:04:03]} 17. Qf4 {[%emt 0:10:36]} c3 {[%emt 0:15:07][%cal Bc4c3,Bc3c2][%mdl 32] [#] And now ...c2 would win.} 18. Be3 $146 {[%emt 0:24:00]} (18. Qe3 $11 {keeps the balance.} d2 19. a3 dxc1=B 20. Raxc1) ({Predecessor:} 18. Qe3 d2 19. a3 dxc1=Q 20. Raxc1 Bd6 21. Rxc3 Ne7 22. Nxd6 cxd6 23. Qa7 b4 24. axb4 Rxb4 {½-½ (30) Ottesen,S (2353)-Esen,N (2425) ICCF email 2014}) 18... c2 $17 {[%emt 0:10:45]} 19. Rf1 {[%emt 0:00:34] [#]} Qe7 {[%emt 0:01:01]} ({Black should try} 19... h6 $1 $17 20. Bd2 Bxd2 21. Qxd2 Bg4) 20. Nfd2 {[%emt 0:14:12]} (20. a3 $11 f5 21. Nf6+ Rxf6 22. axb4) 20... Bb7 {[%emt 0:03:33] Black is more active.} (20... f6 $142 {White must now prevent ...g5.} 21. Rae1 Kh8) 21. Qg5 $2 {[%emt 0:06:01][%mdl 8192] Now White is beyond hope.} (21. a3 $17 Bxa3 22. Qf5) 21... Qxg5 $19 {[%emt 0:07:21] Dancing on a razor blade.} 22. Nxg5 {[%emt 0:00:32]} Bc3 {[%emt 0:02:27] ...Nd4 is the strong threat.} 23. Nge4 $2 {[%emt 0:06:05]} (23. Rae1) 23... Bxa1 {[%emt 0:07:03]} 24. Rxa1 {[%emt 0:00:01]} Nb4 {[%emt 0:00:59][%cal Ob4a2]} 25. a3 {[%emt 0:08:11] [#]} Na2 {[%emt 0:07:30][%mdl 512] Black is clearly winning.} 26. Nf1 {[%emt 0:00:14] [#]} (26. Nc5 Bxg2) 26... Rfe8 $1 {[%emt 0:00:24]} 27. f3 {[%emt 0:02:30]} (27. Rxa2 Bxe4) 27... Bxe4 {[%emt 0:03:12]} 28. fxe4 {[%emt 0:01:24]} Nc3 {[%emt 0:00:11]} 29. Re1 {[%emt 0:04:09]} Nxe4 {[%emt 0:01:24]} 30. Bxe4 {[%emt 0:01:59]} Rxe4 {[%emt 0:00:11]} 31. Kf2 {[%emt 0:00:07] [#]} Rxe3 {[%emt 0:02:10] Weighted Error Value: White=0.86/Black=0.16 (very precise)} 0-1

[Event "Israel-ch Semi-final 2022"]
[Site "Ramat Gan"]
[Date "2022.05.23"]
[Round "3.3"]
[White "Uritsky, Yonathan"]
[Black "Mordechai, Hanan"]
[Result "*"]
[WhiteElo "2072"]
[BlackElo "2313"]
[Annotator "TA"]
[PlyCount "35"]
[EventDate "2022.05.09"]
[EventType "swiss"]
[EventCountry "ISR"]
[SourceTitle "playchess.com"]
[Source "ChessBase"]
[SourceQuality "1"]
[TimeControl "40/5400+30:1800+30"]

{[%evp 16,17,0,0]} 1. d4 {[%emt 0:00:22]} d5 {[%emt 0:00:06]} 2. c4 {[%emt 0:00:28]} e6 {[%emt 0:00:02]} 3. Nf3 {[%emt 0:00:14]} a6 {[%emt 0:00:04]} 4. g3 {[%emt 0:00:17]} dxc4 {[%emt 0:00:07]} 5. Bg2 {[%emt 0:00:13]} Nc6 {[%emt 0:00:07]} 6. O-O {[%emt 0:00:49]} Rb8 {[%emt 0:00:08]} 7. e4 {[%emt 0:03:23]} Nf6 {[%emt 0:00:25]} 8. Nc3 {[%emt 1:28:44]} Be7 {[%emt 0:00:17]} 9. Qe2 {[%emt 0:00:28] [#] 9.d5 injects fresh life into this line.} {Predecessor:} b5 $146 {E04: Open Catalan: 5 Nf3.} 10. Rd1 O-O 11. d5 exd5 12. e5 d4 13. exf6 Bxf6 14. Ne4 Be7 15. b3 d3 16. Qd2 Bg4 17. Bb2 Bxf3 18. Bxf3 {½-½ (40) Matlakov,M (2682)-Rakhmanov,A (2657) Ufa 2021} *

[Event "Israel-ch Semi-final 2022"]
[Site "Ramat Gan"]
[Date "2022.05.23"]
[Round "3.4"]
[White "Tzidkiya, Yeshaayahu"]
[Black "Ribshtein, Nati"]
[Result "1-0"]
[ECO "B95"]
[WhiteElo "2430"]
[BlackElo "2286"]
[Annotator "TA"]
[PlyCount "67"]
[EventDate "2022.05.09"]
[EventType "swiss"]
[EventCountry "ISR"]
[SourceTitle "playchess.com"]
[Source "ChessBase"]
[SourceQuality "1"]
[TimeControl "40/5400+30:1800+30"]

{[%evp 12,67,26,0,0,0,27,0,0,-12,-29,-8,0,-7,53,9,38,25,13,-4,0,-18,0,0,0,0,20,-41,-34,-38,-18,-14,-19,-10,0,-14,47,52,45,89,281,288,281,272,1027,887,799,436,418,422,410,411,992,978,955,946,849,787]} 1. e4 {[%emt 0:00:03]} c5 {[%emt 0:00:21]} 2. Nf3 {[%emt 0:00:14]} d6 {[%emt 0:00:24]} 3. Nc3 {[%emt 0:03:39]} a6 {[%emt 0:02:42]} 4. d4 {[%emt 0:01:11]} cxd4 {[%emt 0:00:09]} 5. Nxd4 {[%emt 0:00:03]} Nf6 {[%emt 0:00:32]} 6. Bg5 {[%emt 0:01:12]} e6 {[%emt 0:00:36]} 7. f3 {[%emt 0:00:08]} b5 {[%emt 0:11:43] B95: Sicilian Najdorf: 6 Bg5 e6, unusual White 7th moves.} 8. Qd2 {[%emt 0:00:15]} Nbd7 {[%emt 0:02:35]} 9. a3 {[%emt 0:01:31]} Bb7 {[%emt 0:00:18] The position is equal.} (9... h6 $5 {[%cal Rh6g5]} 10. Be3 Bb7 $11) 10. g4 {[%emt 0:00:43]} Rc8 {[%emt 0:02:35]} 11. O-O-O {[%emt 0:04:27]} Be7 {[%emt 0:07:06]} 12. h4 {[%emt 0:00:24]} Nb6 {[%emt 0:05:25] [#]} (12... O-O $11) 13. Qe1 $146 {[%emt 0:19:56]} ({Predecessor:} 13. Rg1 O-O 14. h5 Qc7 15. Kb1 Rfe8 16. Qh2 Qb8 17. Bd2 Nfd7 18. g5 d5 19. e5 {1-0 (35) Nepustil,F (2355)-Boschma,B (2414) ICCF email 2010}) 13... h6 {[%emt 0:14:27]} 14. Be3 {[%emt 0:00:23]} Nfd7 {[%emt 0:00:07]} 15. f4 {[%emt 0:05:55]} d5 {[%emt 0:18:16]} 16. exd5 {[%emt 0:31:55]} Nxd5 {[%emt 0:00:29]} 17. Nxd5 {[%emt 0:01:32]} Bxd5 {[%emt 0:00:51]} 18. Rg1 {[%emt 0:00:11]} Qc7 {[%emt 0:07:54]} 19. Bg2 {[%emt 0:04:26]} (19. Kb1 $11) 19... Nb6 $15 {[%emt 0:01:40]} 20. Kb1 {[%emt 0:01:15]} Qc4 {[%emt 0:02:41] ( -> ...Qa2+)} 21. Bxd5 {[%emt 0:04:24]} Nxd5 {[%emt 0:00:13]} 22. Bc1 {[%emt 0:00:24]} O-O {[%emt 0:12:48] Threatening ...b4.} 23. g5 {[%emt 0:02:15] aiming for gxh6.} hxg5 {[%emt 0:03:16]} (23... h5 $11) 24. hxg5 $14 {[%emt 0:00:10]} Bc5 $1 {[%emt 0:01:06]} 25. Qe4 {[%emt 0:04:13] Threatens to win with Rh1.} Ne7 $2 {[%emt 0:02:33] This costs Black the game.} (25... Rfe8 $16 {was necessary.}) 26. Rh1 $18 {[%emt 0:03:25][%csl Gh1][%cal Re4h7]} Nf5 {[%emt 0:01:54][%cal Rc5d4]} 27. b3 {[%emt 0:00:16]} Qc3 {[%emt 0:00:42]} (27... Qxd4 28. Rxd4 Bxd4) 28. Bb2 {[%emt 0:05:08]} Qe3 {[%emt 0:00:22]} 29. Qxe3 {[%emt 0:00:08]} Nxe3 {[%emt 0:00:03]} 30. Rd3 {[%emt 0:00:04]} Bxd4 {[%emt 0:01:09]} 31. Bxd4 {[%emt 0:00:04]} Nf5 {[%emt 0:00:25] [#]} (31... Ng4 $142 32. Rdh3 f6 33. gxf6 Nxf6 34. Bxf6 gxf6 35. Rg3+ Kf7 36. Rh7+ Ke8) 32. Bf6 $1 {[%emt 0:01:19][%mdl 512] White is clearly winning.} gxf6 {[%emt 0:00:35]} 33. gxf6 {[%emt 0:00:08][%cal Bg5f6,Bf6e7][%mdl 32] White wants to mate with Rdh3.} Ne7 {[%emt 0:00:31]} 34. fxe7 {[%emt 0:06:09] Weighted Error Value: White=0.27 (precise) /Black=0.29 (precise)} 1-0

[Event "Israel-ch Semi-final 2022"]
[Site "Ramat Gan"]
[Date "2022.05.23"]
[Round "3.5"]
[White "Chernomordik, Pavel"]
[Black "Ben Ari, Yannay"]
[Result "0-1"]
[ECO "B11"]
[WhiteElo "2178"]
[BlackElo "2409"]
[Annotator "TA"]
[PlyCount "70"]
[EventDate "2022.05.09"]
[EventType "swiss"]
[EventCountry "ISR"]
[SourceTitle "playchess.com"]
[Source "ChessBase"]
[SourceQuality "1"]
[TimeControl "40/5400+30:1800+30"]

{[%evp 9,70,5,1,10,17,10,0,17,10,0,1,-20,-4,-36,-16,-25,-20,-23,0,-6,-14,-19,-4,-17,-15,-18,25,18,22,33,70,51,50,55,57,0,0,0,8,31,37,12,16,0,0,-22,23,-31,-29,-150,-143,-148,-24,-567,-566,-523,-554,-720,-712,-29982,-29983,-29983,-29984]} 1. e4 {[%emt 0:00:03]} c6 {[%emt 0:00:08]} 2. Nc3 {[%emt 0:00:52]} d5 {[%emt 0:00:02]} 3. Nf3 {[%emt 0:00:17]} Bg4 {[%emt 0:00:07]} 4. h3 {[%emt 0:00:19]} Bxf3 {[%emt 0:00:02]} 5. Qxf3 {[%emt 0:00:02]} e6 {[%emt 0:00:12]} 6. Qg3 {[%emt 0:00:43] B11: Caro-Kann: Two Knights Variation.} Ne7 {[%emt 0:02:31]} 7. d3 {[%emt 0:01:49]} Nd7 {[%emt 0:02:01]} 8. Be2 {[%emt 0:02:19] The position is equal.} g6 {[%emt 0:12:25]} 9. O-O {[%emt 0:05:19]} Bg7 {[%emt 0:00:54]} 10. Kh1 {[%emt 0:01:14]} O-O {[%emt 0:13:43] [#]} 11. Qh4 $146 {[%emt 0:04:47]} ({Predecessor:} 11. f4 Kh8 12. Bf3 b5 13. a3 a5 14. Qe1 Rb8 15. Ne2 c5 16. c3 c4 17. d4 dxe4 18. Bxe4 {1-0 (69) McShane,L (2672)-Rodshtein,M (2674) Batumi 2018}) 11... b5 {[%emt 0:07:18]} 12. Bg5 {[%emt 0:04:32]} f6 {[%emt 0:05:56]} 13. Bd2 {[%emt 0:13:38]} d4 {[%emt 0:11:48]} 14. Nd1 {[%emt 0:00:30]} e5 {[%emt 0:00:51]} 15. f4 {[%emt 0:05:05]} exf4 {[%emt 0:02:50]} 16. Qxf4 {[%emt 0:00:17]} f5 {[%emt 0:02:28]} 17. Qd6 {[%emt 0:13:26]} fxe4 {[%emt 0:22:15]} 18. dxe4 {[%emt 0:13:58]} Rxf1+ {[%emt 0:11:22]} 19. Bxf1 {[%emt 0:01:02]} Ne5 {[%emt 0:02:32]} 20. Qe6+ {[%emt 0:03:07]} Kh8 {[%emt 0:00:01]} 21. Nf2 {[%emt 0:05:00] aiming for Bg5.} Ng8 {[%emt 0:00:01]} 22. a4 {[%emt 0:03:25]} (22. Bf4 $14 Qe8 23. Qxe8 Rxe8 24. a4) 22... Qf8 $11 {[%emt 0:00:21]} 23. Kg1 {[%emt 0:01:44]} Re8 {[%emt 0:00:24]} 24. Qb3 {[%emt 0:00:10]} a6 {[%emt 0:00:24]} 25. axb5 {[%emt 0:01:35]} axb5 {[%emt 0:00:01]} 26. Qg3 {[%emt 0:07:40]} Qc5 {[%emt 0:01:15]} 27. Bd3 {[%emt 0:05:20]} Nc4 {[%emt 0:01:01] Pair of Knights!} 28. b4 {[%emt 0:02:27]} (28. Bxc4 $11 bxc4 29. Ra5) 28... Qe7 $15 {[%emt 0:00:10]} 29. Be1 {[%emt 0:00:21]} (29. Bxc4 $11 {remains equal.} bxc4 30. Ra4) 29... Be5 $17 {[%emt 0:00:13]} 30. Qf3 {[%emt 0:00:21]} Ne3 {[%emt 0:00:49] 0x0.001de015f40fdp-1022s more active pieces.} ({Better is} 30... Rf8 $17 31. Qe2 Ne3) 31. c3 $2 {[%emt 0:02:33][%mdl 8192] This move loses the game for White.} (31. Ng4 $11) 31... Rf8 $19 {[%emt 0:00:06]} 32. Qe2 {[%emt 0:01:48]} Qg5 {[%emt 0:00:08][%csl Ge3][%cal Rg5g2] [#]} 33. Ng4 {[%emt 0:00:31]} Nxg4 {[%emt 0:00:36]} 34. Qxg4 {[%emt 0:00:35]} Qe3+ {[%emt 0:00:02]} 35. Kh1 {[%emt 0:00:31]} Qxd3 {[%emt 0:00:07] Weighted Error Value: White=0.68/Black=0.13 (very precise)} 0-1

[Event "Israel-ch Semi-final 2022"]
[Site "Ramat Gan"]
[Date "2022.05.23"]
[Round "3.6"]
[White "Kochavi, Ori"]
[Black "Sivan, Yaacov"]
[Result "0-1"]
[ECO "B31"]
[WhiteElo "2365"]
[BlackElo "2306"]
[Annotator "TA"]
[PlyCount "82"]
[EventDate "2022.05.09"]
[EventType "swiss"]
[EventCountry "ISR"]
[SourceTitle "playchess.com"]
[Source "ChessBase"]
[SourceQuality "1"]
[TimeControl "40/5400+30:1800+30"]

{[%evp 16,82,27,22,22,17,29,16,46,39,42,40,49,48,45,31,30,37,27,12,27,-122,-116,-187,-185,-222,-117,-123,-159,-134,-64,-63,-79,-179,-200,-246,-187,-166,-80,-79,-39,-151,-53,-88,0,0,0,0,0,0,0,-40,-85,-58,0,-1183,-1129,-1097,-1030,-29990,-29991,-29991,-29991,-29992,-29992,-29996,-29997,-29997,-29998]} 1. e4 {[%emt 0:00:03]} c5 {[%emt 0:04:35]} 2. Nf3 {[%emt 0:00:18]} Nc6 {[%emt 0:00:06]} 3. Bb5 {[%emt 0:00:02]} g6 {[%emt 0:00:47]} 4. Bxc6 {[%emt 0:00:05]} dxc6 {[%emt 0:00:32]} 5. d3 {[%emt 0:00:09]} Bg7 {[%emt 0:00:18]} 6. h3 {[%emt 0:00:06]} Nf6 {[%emt 0:01:25]} 7. Nc3 {[%emt 0:00:10][%cal Bb1c3,Bc3e2,Be2g3,Bg3h5][%mdl 32]} Nd7 $1 {[%emt 0:02:20][%mdl 4] outshines the older 7...0-0.} 8. Be3 {[%emt 0:00:07]} e5 {[%emt 0:01:55]} 9. Qd2 {[%emt 0:00:16]} h6 {[%emt 0:01:46] B31: Sicilian: 2...Nc6 3 Bb5 g6.} 10. O-O {[%emt 0:00:09]} b6 {[%emt 0:02:36]} 11. Nh2 {[%emt 0:00:05]} g5 {[%emt 0:02:47] The position is equal.} 12. Ne2 {[%emt 0:01:18]} Nf8 {[%emt 0:06:58][%cal Bd7f8,Bf8g6,Bg6f4][%mdl 32]} 13. Ng3 {[%emt 0:06:57]} Ng6 {[%emt 0:07:48]} 14. Nh5 {[%emt 0:01:55]} O-O {[%emt 0:02:53] [#]} 15. b4 $146 {[%emt 0:00:07]} ({Predecessor:} 15. Ng4 Qe7 16. Qc3 Kh7 17. f4 gxf4 18. Nxg7 Kxg7 19. Bxf4 Bxg4 20. hxg4 f6 21. Bg3 {½-½ (60) Stevic,H (2637)-Kozul,Z (2624) Bol 2013}) 15... cxb4 {[%emt 0:02:16]} 16. Qxb4 {[%emt 0:00:05]} c5 {[%emt 0:02:22]} 17. Qb2 {[%emt 0:00:04]} Bh8 {[%emt 0:02:27]} 18. g4 {[%emt 0:11:58]} (18. Ng3 $11) 18... Nf4 $17 {[%emt 0:04:25]} 19. Bxf4 {[%emt 0:00:37]} (19. a4 $17 {might work better.}) 19... exf4 $19 {[%emt 0:01:12]} 20. Qc1 {[%emt 0:01:46]} Bxa1 {[%emt 0:02:45]} (20... Be6 $19 21. Rd1 Bxa1 22. Qxa1 f6) 21. Qxa1 $17 {[%emt 0:00:02][%csl Gh5][%cal Ra1g7]} Qd4 {[%emt 0:01:25] Against Qg7+} 22. c3 {[%emt 0:00:09]} Qxd3 {[%emt 0:13:51]} (22... Qd6 $1 $17 {Hoping for ...Bb7.} 23. d4 f6) 23. Rd1 $15 {[%emt 0:00:05]} Qc4 {[%emt 0:05:46] ...Bb7 is the strong threat.} (23... Qxh3 $2 24. c4 f6 25. Nxf6+ Rxf6 26. Qxf6 Bxg4 27. Qg6+ Kh8 28. Rd6 $18) 24. Rd6 {[%emt 0:00:05]} (24. Nf6+ $17 {is a better defense.} Kg7 25. e5) 24... Be6 $19 {[%emt 0:01:29] Threatens to win with ...Rfd8.} 25. Nf6+ {[%emt 0:04:33]} Kg7 {[%emt 0:04:51]} 26. Nh5+ {[%emt 0:00:05]} Kh8 {[%emt 0:00:57]} (26... Kh7 $1 $19 {and Black stays clearly on top.} 27. e5 Rfd8) 27. Nf3 $17 {[%emt 0:00:06]} Rad8 {[%emt 0:02:03]} (27... Qxe4 $2 28. c4+ f6 29. Nxf6 $1 $18) (27... Rae8 $5 {[%cal Rf7f6]} 28. Ne5 Qxa2 29. Qxa2 Bxa2 30. Rxh6+ Kg8 $19) 28. Qd1 {[%emt 0:00:18]} Rde8 {[%emt 0:02:28]} (28... Rc8 $17 {aiming for ...b5.} 29. e5 Rg8) 29. e5 {[%emt 0:06:37]} Qe4 {[%emt 0:02:51]} ({But not} 29... Qxa2 $6 30. Nf6 Bc4 31. Nxe8 Rxe8 32. Rxh6+ Kg7 33. Rh5 $11) (29... Rg8 $17 30. Nf6 Ref8) 30. Nf6 $11 {[%emt 0:00:29][%csl LRe4,LRe8]} Qg6 {[%emt 0:00:41]} 31. Nd2 {[%emt 0:04:20]} Rc8 {[%emt 0:01:52]} 32. Nde4 {[%emt 0:00:28] Pair of Knights!} Bxa2 {[%emt 0:03:18]} 33. Qa1 {[%emt 0:01:57]} Be6 {[%emt 0:01:17] White must now prevent ...Ra8.} 34. Qxa7 {[%emt 0:00:05]} b5 {[%emt 0:00:56]} (34... h5 $1 $15 35. Qa4 hxg4 36. hxg4 f3) 35. Nxc5 $2 {[%emt 0:02:06][%mdl 8192] [#]} (35. Kh2 $11) 35... Qb1+ $1 $19 {[%emt 0:00:53]} 36. Kg2 {[%emt 0:00:51]} Bc4 {[%emt 0:00:48]} 37. Nfe4 {[%emt 0:02:27]} Qf1+ {[%emt 0:00:56] Black mates.} 38. Kh2 {[%emt 0:00:04]} f3 {[%emt 0:00:28][%csl Gf3][%cal Rf1g2]} 39. Rxh6+ {[%emt 0:00:06]} Kg7 {[%emt 0:00:44][%csl Gf3][%cal Rf1g2]} 40. Rg6+ {[%emt 0:00:17]} Kxg6 {[%emt 0:00:23][%csl Gf3][%cal Rf1g2]} 41. Qb6+ {[%emt 0:30:04]} f6 {[%emt 0:30:10] Weighted Error Value: White=0.57/Black=0.19 (very precise)} 0-1

[Event "Israel-ch Semi-final 2022"]
[Site "Ramat Gan"]
[Date "2022.05.30"]
[Round "4.1"]
[White "Dvoirys, Semen I."]
[Black "Zemach, Nadav"]
[Result "1/2-1/2"]
[ECO "C88"]
[WhiteElo "2439"]
[BlackElo "2238"]
[Annotator "TA"]
[PlyCount "59"]
[EventDate "2022.05.09"]
[EventType "swiss"]
[EventCountry "ISR"]
[SourceTitle "playchess.com"]
[Source "ChessBase"]
[SourceQuality "1"]
[TimeControl "40/5400+30:1800+30"]

{[%evp 14,59,29,27,73,52,60,14,13,24,18,26,24,15,18,12,23,17,16,12,14,14,27,18,17,16,22,0,0,-2,-3,-10,-7,-9,8,8,8,8,7,8,8,8,6,5,8,0,0,0]} 1. e4 {[%emt 0:00:03]} e5 {[%emt 0:00:02]} 2. Nf3 {[%emt 0:00:07]} Nc6 {[%emt 0:00:02]} 3. Bb5 {[%emt 0:00:08][%cal Bf1b5,Bb5a4,Ba4b3][%mdl 32]} a6 {[%emt 0:00:03]} 4. Ba4 {[%emt 0:00:04]} Nf6 {[%emt 0:00:04]} 5. O-O {[%emt 0:00:08]} Be7 {[%emt 0:00:04]} 6. Re1 {[%emt 0:01:03]} b5 {[%emt 0:00:10]} 7. Bb3 {[%emt 0:00:02]} O-O {[%emt 0:00:08]} 8. a4 {[%emt 0:00:18] Strongly threatening axb5.} d5 {[%emt 0:00:05] C88: Closed Ruy Lopez: Anti-Marshall Systems.} (8... b4 $11) 9. exd5 {[%emt 0:04:49]} Na5 {[%emt 0:00:40]} 10. Nxe5 {[%emt 0:01:26]} (10. Ba2 $14) 10... Nxb3 $11 {[%emt 0:00:08]} (10... Nxd5 11. Bxd5 Qxd5 12. Nc3 $16) 11. cxb3 {[%emt 0:00:59]} Bb7 {[%emt 0:00:09]} 12. Nc6 {[%emt 0:05:51]} Bxc6 {[%emt 0:00:02]} 13. dxc6 {[%emt 0:00:06] Hoping for axb5.} Bc5 $1 {[%emt 0:00:03]} 14. d4 {[%emt 0:05:35]} Bxd4 {[%emt 0:00:05]} ({Don't play} 14... Qxd4 15. Qxd4 Bxd4 16. axb5 $16) 15. axb5 {[%emt 0:07:24]} Ne4 $1 {[%emt 0:00:28]} 16. Be3 {[%emt 0:00:38]} Bxe3 {[%emt 0:00:43] [#]} 17. fxe3 $146 {[%emt 0:02:17] [#] Black must now prevent Qxd8.} ({Predecessor:} 17. Qxd8 Rfxd8 18. fxe3 axb5 19. Nc3 Nxc3 20. bxc3 g6 21. b4 Rxa1 22. Rxa1 Rd3 23. Rc1 Rxe3 24. c4 Rb3 25. cxb5 Rxb4 26. Rc5 Kf8 27. Rd5 Ke7 28. Rd7+ {½-½ (28) Perez Ponsa,F (2554)-Vazquez,G (2534) Chess.com INT 2021}) 17... axb5 {[%emt 0:01:02]} 18. Rxa8 {[%emt 0:14:33]} Qxa8 {[%emt 0:00:07] The position is equal.} 19. Qd5 {[%emt 0:00:07][%csl LRb5,LRe4]} Re8 {[%emt 0:00:33]} 20. Qxb5 {[%emt 0:09:14]} Qa2 {[%emt 0:12:00]} 21. Rf1 {[%emt 0:21:35]} Qxb2 {[%emt 0:01:16]} 22. Qc4 {[%emt 0:00:07]} Nd6 {[%emt 0:03:15][%csl LRc4,LRe3]} 23. Qc3 {[%emt 0:01:56]} Qxc3 {[%emt 0:12:48][%mdl 64] [#] Remove Defender} 24. Nxc3 {[%emt 0:00:04] Threatens to win with Nd5.} Rxe3 {[%emt 0:00:06][%mdl 4096] Endgame KRN-KRN} 25. Nd5 {[%emt 0:00:04][%csl LRc7,LRe3]} Rxb3 {[%emt 0:00:58]} 26. Rd1 {[%emt 0:00:04]} Kf8 $1 {[%emt 0:08:45]} 27. Nxc7 {[%emt 0:00:05]} Ke7 {[%emt 0:00:08]} 28. Nd5+ {[%emt 0:00:07]} Kd8 $1 {[%emt 0:01:38]} 29. Nf6 {[%emt 0:06:24]} Kc7 {[%emt 0:01:34]} 30. Nxh7 {[%emt 0:00:08] Weighted Error Value: White=0.08 (flawless) /Black=0.03 (flawless)} 1/2-1/2